[Event "Late-Titled-Tuesday-Blitz-January-23-2024"]
[Site "Chess.com"]
[Date "2024.01.23"]
[Round "1"]
[White "The_Machine04"]
[Black "ITheOnlyME"]
[Result "1-0"]
[WhiteElo "2714"]
[BlackElo "2399"]
[TimeControl "180+1"]
[EndTime "14:08:32 PST"]
[Termination "The_Machine04 won by resignation"]

1. d4 {[%clk 0:02:59.1]} 1... Nf6 {[%clk 0:02:59.8]} 2. Nf3 {[%clk 0:02:59.2]}
2... g6 {[%clk 0:03:00.1]} 3. Nbd2 {[%clk 0:02:59.6]} 3... Bg7 {[%clk
0:03:00.8]} 4. e4 {[%clk 0:02:59.8]} 4... d6 {[%clk 0:03:01.5]} 5. Bc4 {[%clk
0:02:59.6]} 5... O-O {[%clk 0:02:59.8]} 6. O-O {[%clk 0:02:59.2]} 6... c6 {[%clk
0:03:00.4]} 7. Bb3 {[%clk 0:02:58.3]} 7... a5 {[%clk 0:02:57.6]} 8. a4 {[%clk
0:02:57.3]} 8... Nbd7 {[%clk 0:02:58.2]} 9. e5 {[%clk 0:02:56.6]} 9... dxe5
{[%clk 0:02:48.6]} 10. dxe5 {[%clk 0:02:57.5]} 10... Nd5 {[%clk 0:02:49.5]} 11.
e6 {[%clk 0:02:56.6]} 11... fxe6 {[%clk 0:02:48.5]} 12. Ne4 {[%clk 0:02:56.7]}
12... N7f6 {[%clk 0:02:44.9]} 13. Qe2 {[%clk 0:02:48]} 13... Nxe4 {[%clk
0:02:38.9]} 14. Qxe4 {[%clk 0:02:48.9]} 14... e5 {[%clk 0:02:35.4]} 15. Nxe5
{[%clk 0:02:41.7]} 15... Bf5 {[%clk 0:02:35.8]} 16. Qe2 {[%clk 0:02:41.1]} 16...
Kh8 {[%clk 0:02:35.9]} 17. Re1 {[%clk 0:02:35.3]} 17... Qd6 {[%clk 0:02:27.1]}
18. Nc4 {[%clk 0:02:33.1]} 18... Qf6 {[%clk 0:02:25.6]} 19. Bd2 {[%clk
0:02:26.9]} 19... Rae8 {[%clk 0:02:15.5]} 20. Ne5 {[%clk 0:02:05.7]} 20... b6
{[%clk 0:02:07.2]} 21. h3 {[%clk 0:01:59.9]} 21... Bc8 {[%clk 0:02:06.1]} 22.
Rad1 {[%clk 0:01:50.7]} 22... Bb7 {[%clk 0:02:06.3]} 23. Nd7 {[%clk 0:01:48.1]}
23... Qxb2 {[%clk 0:02:06.2]} 24. Nxf8 {[%clk 0:01:47]} 24... Rxf8 {[%clk
0:01:58.7]} 25. Bxd5 {[%clk 0:01:43.4]} 25... cxd5 {[%clk 0:01:59.6]} 26. Qxe7
{[%clk 0:01:43.1]} 26... Bc6 {[%clk 0:02:00.2]} 27. Rb1 {[%clk 0:01:25.1]} 27...
Qxc2 {[%clk 0:01:59.2]} 28. Be3 {[%clk 0:01:20.3]} 28... Qf5 {[%clk 0:01:45.3]}
29. Rxb6 {[%clk 0:01:08.5]} 29... Bxa4 {[%clk 0:01:39.2]} 30. Rb7 {[%clk
0:01:07.9]} 30... Qf6 {[%clk 0:01:32.7]} 31. Qxf6 {[%clk 0:01:05.7]} 31... Bxf6
{[%clk 0:01:33.6]} 32. Bh6 {[%clk 0:01:02.2]} 32... Rd8 {[%clk 0:01:29.5]} 33.
Re6 {[%clk 0:00:58]} 33... Bc3 {[%clk 0:00:56.4]} 34. Rd6 {[%clk 0:00:54.3]}
34... Re8 {[%clk 0:00:47.3]} 35. g3 {[%clk 0:00:24.3]} 35... d4 {[%clk
0:00:47.2]} 36. Bg7+ {[%clk 0:00:21.9]} 36... Kg8 {[%clk 0:00:47.7]} 37. Bxd4
{[%clk 0:00:21.6]} 37... Bxd4 {[%clk 0:00:46.4]} 38. Rxd4 {[%clk 0:00:22.5]}
38... Bc6 {[%clk 0:00:46.6]} 39. Rb1 {[%clk 0:00:20]} 39... a4 {[%clk
0:00:46.9]} 40. Rbd1 {[%clk 0:00:19]} 40... a3 {[%clk 0:00:40.2]} 41. Rd8 {[%clk
0:00:15.6]} 41... a2 {[%clk 0:00:36]} 42. Rxe8+ {[%clk 0:00:15.5]} 42... Bxe8
{[%clk 0:00:36.9]} 43. Kf1 {[%clk 0:00:14.4]} 43... Bb5+ {[%clk 0:00:27.4]} 44.
Ke1 {[%clk 0:00:14.3]} 44... Bd3 {[%clk 0:00:26.9]} 45. Ra1 {[%clk 0:00:14]}
45... Bc4 {[%clk 0:00:25.6]} 46. Kd2 {[%clk 0:00:14.3]} 46... Kf7 {[%clk
0:00:26.4]} 47. Kc3 {[%clk 0:00:14.3]} 47... Bd5 {[%clk 0:00:26.5]} 48. Kb2
{[%clk 0:00:13.1]} 48... Be6 {[%clk 0:00:25.9]} 49. Rxa2 {[%clk 0:00:11.2]}
49... Bxh3 {[%clk 0:00:25.1]} 50. Kc3 {[%clk 0:00:10.3]} 50... Kf6 {[%clk
0:00:25]} 51. Ra5 {[%clk 0:00:10.7]} 51... Bf5 {[%clk 0:00:23]} 52. Kd4 {[%clk
0:00:11.6]} 52... Kg5 {[%clk 0:00:21.4]} 53. f3 {[%clk 0:00:12.1]} 53... h5
{[%clk 0:00:21.8]} 54. Ke3 {[%clk 0:00:12.2]} 54... Kf6 {[%clk 0:00:20.6]} 55.
Kf4 {[%clk 0:00:12.1]} 55... g5+ {[%clk 0:00:19.2]} 56. Ke3 {[%clk 0:00:12.2]}
56... h4 {[%clk 0:00:19.8]} 57. gxh4 {[%clk 0:00:11.5]} 57... gxh4 {[%clk
0:00:20.1]} 58. Kf4 {[%clk 0:00:12.4]} 58... Be6 {[%clk 0:00:19.7]} 59. Rh5
{[%clk 0:00:11.9]} 59... h3 {[%clk 0:00:19.7]} 60. Rh6+ {[%clk 0:00:12.2]} 60...
Ke7 {[%clk 0:00:19.8]} 61. Ke5 {[%clk 0:00:12.1]} 61... Bc8 {[%clk 0:00:18.5]}
62. f4 {[%clk 0:00:12.4]} 62... Kf7 {[%clk 0:00:17.9]} 63. f5 {[%clk 0:00:12.2]}
63... Kg7 {[%clk 0:00:18.2]} 64. Rxh3 {[%clk 0:00:12.3]} 64... Kf7 {[%clk
0:00:18.5]} 65. Rc3 {[%clk 0:00:12]} 65... Ba6 {[%clk 0:00:18.2]} 66. Rc7+
{[%clk 0:00:12.9]} 66... Kf8 {[%clk 0:00:18.6]} 67. Kf6 {[%clk 0:00:12.9]} 67...
Ke8 {[%clk 0:00:17.6]} 68. Kg7 {[%clk 0:00:13.1]} 68... Kd8 {[%clk 0:00:17.5]}
69. Ra7 {[%clk 0:00:13.4]} 69... Bc4 {[%clk 0:00:18.1]} 70. f6 {[%clk
0:00:13.7]} 1-0

[Event "Late-Titled-Tuesday-Blitz-January-23-2024"]
[Site "Chess.com"]
[Date "2024.01.23"]
[Round "1"]
[White "AndreyNeves"]
[Black "TimGrutter03"]
[Result "0-1"]
[WhiteElo "2018"]
[BlackElo "2552"]
[TimeControl "180+1"]
[EndTime "14:08:33 PST"]
[Termination "TimGrutter03 won by checkmate"]

1. d4 {[%clk 0:02:56.7]} 1... d6 {[%clk 0:02:56]} 2. Nf3 {[%clk 0:02:55.7]} 2...
Nd7 {[%clk 0:02:53.1]} 3. c4 {[%clk 0:02:54.4]} 3... a6 {[%clk 0:02:45.3]} 4.
Nc3 {[%clk 0:02:54.4]} 4... b6 {[%clk 0:02:44.1]} 5. e4 {[%clk 0:02:54.1]} 5...
e6 {[%clk 0:02:43.6]} 6. Bd3 {[%clk 0:02:53.5]} 6... g6 {[%clk 0:02:40.5]} 7.
O-O {[%clk 0:02:52]} 7... Bg7 {[%clk 0:02:39.9]} 8. Be3 {[%clk 0:02:50.9]} 8...
Bb7 {[%clk 0:02:38.7]} 9. Qd2 {[%clk 0:02:49.3]} 9... h6 {[%clk 0:02:37.5]} 10.
Rfe1 {[%clk 0:02:48.1]} 10... Ne7 {[%clk 0:02:36.6]} 11. Rad1 {[%clk 0:02:43]}
11... e5 {[%clk 0:02:35.8]} 12. d5 {[%clk 0:02:40.7]} 12... a5 {[%clk
0:02:34.1]} 13. Bc2 {[%clk 0:02:35.3]} 13... Bc8 {[%clk 0:02:29.5]} 14. Ba4
{[%clk 0:02:31.5]} 14... Kf8 {[%clk 0:02:28.4]} 15. Bc6 {[%clk 0:02:30.7]} 15...
Rb8 {[%clk 0:02:23.6]} 16. a3 {[%clk 0:02:27.7]} 16... Nf6 {[%clk 0:02:21.3]}
17. h3 {[%clk 0:02:21.1]} 17... Nxc6 {[%clk 0:02:15.1]} 18. dxc6 {[%clk
0:02:20.4]} 18... Be6 {[%clk 0:02:15.6]} 19. Qd3 {[%clk 0:02:15]} 19... Qe8
{[%clk 0:02:04]} 20. Nd5 {[%clk 0:02:07.1]} 20... Qxc6 {[%clk 0:02:01.1]} 21. b4
{[%clk 0:02:07]} 21... axb4 {[%clk 0:01:59.6]} 22. axb4 {[%clk 0:02:06.4]} 22...
Bxd5 {[%clk 0:01:49.1]} 23. cxd5 {[%clk 0:02:03.5]} 23... Qd7 {[%clk 0:01:49.2]}
24. b5 {[%clk 0:02:01.4]} 24... Kg8 {[%clk 0:01:48.1]} 25. Rc1 {[%clk
0:01:56.2]} 25... Kh7 {[%clk 0:01:47.5]} 26. Rc6 {[%clk 0:01:55.8]} 26... Rhc8
{[%clk 0:01:43.4]} 27. Rec1 {[%clk 0:01:55]} 27... Ne8 {[%clk 0:01:27.7]} 28. g4
{[%clk 0:01:50.3]} 28... Rd8 {[%clk 0:01:20.5]} 29. Kg2 {[%clk 0:01:42.2]} 29...
Ra8 {[%clk 0:01:15.2]} 30. Nh2 {[%clk 0:01:39]} 30... Ra4 {[%clk 0:01:12.9]} 31.
R1c4 {[%clk 0:01:35.8]} 31... Ra2 {[%clk 0:01:11.6]} 32. Rc2 {[%clk 0:01:30.1]}
32... Ra4 {[%clk 0:01:11.7]} 33. R2c4 {[%clk 0:01:26.8]} 33... Ra5 {[%clk
0:01:11.9]} 34. Rc2 {[%clk 0:01:24.6]} 34... Rda8 {[%clk 0:01:10.6]} 35. Qe2
{[%clk 0:01:18.2]} 35... Ra4 {[%clk 0:01:05.3]} 36. Qd3 {[%clk 0:01:10.4]} 36...
Bf6 {[%clk 0:00:59.6]} 37. Qd2 {[%clk 0:01:03.9]} 37... Rxe4 {[%clk 0:00:56]}
38. Bxh6 {[%clk 0:01:02.1]} 38... Rd4 {[%clk 0:00:54]} 39. Qc1 {[%clk
0:00:58.2]} 39... Rxd5 {[%clk 0:00:53.1]} 40. g5 {[%clk 0:00:51]} 40... Bd8
{[%clk 0:00:47.2]} 41. Ng4 {[%clk 0:00:50.4]} 41... Rxb5 {[%clk 0:00:46.4]} 42.
Qe3 {[%clk 0:00:42.4]} 42... Ra4 {[%clk 0:00:40.9]} 43. Qf3 {[%clk 0:00:40.7]}
43... Rf4 {[%clk 0:00:23.2]} 44. Qg3 {[%clk 0:00:38.6]} 44... Qf5 {[%clk
0:00:19]} 45. Ne3 {[%clk 0:00:37.3]} 45... Qe4+ {[%clk 0:00:18.2]} 46. Kh2
{[%clk 0:00:35.1]} 46... Rb1 {[%clk 0:00:17.7]} 47. Ng2 {[%clk 0:00:32.6]} 47...
Ng7 {[%clk 0:00:10]} 48. Bxg7 {[%clk 0:00:28.8]} 48... Kxg7 {[%clk 0:00:09.8]}
49. R6c4 {[%clk 0:00:26.5]} 49... Qxc4 {[%clk 0:00:06.2]} 50. Rxc4 {[%clk
0:00:25]} 50... Rxc4 {[%clk 0:00:07.1]} 51. Ne3 {[%clk 0:00:24]} 51... Rf4
{[%clk 0:00:05.2]} 52. Nd5 {[%clk 0:00:22.3]} 52... Rf5 {[%clk 0:00:04.6]} 53.
Qg4 {[%clk 0:00:17.7]} 53... Rxf2+ {[%clk 0:00:03]} 54. Kg3 {[%clk 0:00:14.2]}
54... Rf5 {[%clk 0:00:02.5]} 55. Qe2 {[%clk 0:00:10.5]} 55... Rg1+ {[%clk
0:00:01.6]} 56. Kh2 {[%clk 0:00:10.9]} 56... Rgxg5 {[%clk 0:00:01.9]} 57. Nf6
{[%clk 0:00:11.3]} 57... Bxf6 {[%clk 0:00:01.7]} 58. Qe1 {[%clk 0:00:10.3]}
58... Rf4 {[%clk 0:00:02]} 59. h4 {[%clk 0:00:09.8]} 59... Rgf5 {[%clk
0:00:02.5]} 60. h5 {[%clk 0:00:09.6]} 60... Rf2+ {[%clk 0:00:02.8]} 61. Kh3
{[%clk 0:00:09]} 61... R5f3+ {[%clk 0:00:03.3]} 62. Kg4 {[%clk 0:00:09.9]} 62...
gxh5+ {[%clk 0:00:03.4]} 63. Kxh5 {[%clk 0:00:09.8]} 63... Rf5+ {[%clk 0:00:04]}
64. Kg4 {[%clk 0:00:09.9]} 64... Rg5+ {[%clk 0:00:04.6]} 65. Kh3 {[%clk
0:00:09.5]} 65... Rf3+ {[%clk 0:00:05.2]} 66. Kh2 {[%clk 0:00:09.1]} 66... Rf4
{[%clk 0:00:05.4]} 67. Qd1 {[%clk 0:00:07.7]} 67... Rh4# {[%clk 0:00:04.4]} 0-1

[Event "Late-Titled-Tuesday-Blitz-January-23-2024"]
[Site "Chess.com"]
[Date "2024.01.23"]
[Round "1"]
[White "kaanadayhamle"]
[Black "kingofthenil"]
[Result "0-1"]
[WhiteElo "2393"]
[BlackElo "2702"]
[TimeControl "180+1"]
[EndTime "14:08:38 PST"]
[Termination "kingofthenil won by resignation"]

1. Nf3 {[%clk 0:02:58.3]} 1... c6 {[%clk 0:02:59.9]} 2. d4 {[%clk 0:02:57.8]}
2... f5 {[%clk 0:02:56.4]} 3. c4 {[%clk 0:02:57.3]} 3... Nf6 {[%clk 0:02:56.9]}
4. Nc3 {[%clk 0:02:57.6]} 4... g6 {[%clk 0:02:56.6]} 5. Bg5 {[%clk 0:02:57.7]}
5... Bg7 {[%clk 0:02:56.9]} 6. Qd2 {[%clk 0:02:56.8]} 6... h6 {[%clk 0:02:49.7]}
7. Bf4 {[%clk 0:02:53]} 7... g5 {[%clk 0:02:42.2]} 8. Be5 {[%clk 0:02:53.2]}
8... d6 {[%clk 0:02:42]} 9. Bxf6 {[%clk 0:02:53.6]} 9... Bxf6 {[%clk 0:02:42.9]}
10. h4 {[%clk 0:02:54]} 10... g4 {[%clk 0:02:38]} 11. Ng1 {[%clk 0:02:53]} 11...
e5 {[%clk 0:02:31.6]} 12. dxe5 {[%clk 0:02:45.9]} 12... dxe5 {[%clk 0:02:22]}
13. Qxd8+ {[%clk 0:02:45.6]} 13... Kxd8 {[%clk 0:02:21.3]} 14. e3 {[%clk
0:02:46]} 14... e4 {[%clk 0:02:15.9]} 15. O-O-O+ {[%clk 0:02:44.6]} 15... Kc7
{[%clk 0:02:15.9]} 16. Nce2 {[%clk 0:02:43.6]} 16... Nd7 {[%clk 0:02:09.7]} 17.
Nf4 {[%clk 0:02:41.7]} 17... Ne5 {[%clk 0:02:10.6]} 18. b3 {[%clk 0:02:40.4]}
18... a5 {[%clk 0:02:05.3]} 19. a4 {[%clk 0:02:36.5]} 19... Re8 {[%clk 0:01:38]}
20. Nge2 {[%clk 0:02:35.2]} 20... Nd7 {[%clk 0:01:38.9]} 21. Nd4 {[%clk
0:02:26.9]} 21... Nc5 {[%clk 0:01:39]} 22. Kc2 {[%clk 0:02:24.5]} 22... Ra6
{[%clk 0:01:38.6]} 23. Be2 {[%clk 0:02:17.1]} 23... Rb6 {[%clk 0:01:38.1]} 24.
Rb1 {[%clk 0:02:17.4]} 24... Bd7 {[%clk 0:01:31.3]} 25. g3 {[%clk 0:01:53.7]}
25... Ra8 {[%clk 0:01:21.2]} 26. Rhd1 {[%clk 0:01:52.4]} 26... Rb4 {[%clk
0:01:20.5]} 27. Rd2 {[%clk 0:00:51.2]} 27... Ra6 {[%clk 0:01:18.3]} 28. Rdd1
{[%clk 0:00:44.1]} 28... Rab6 {[%clk 0:01:18.2]} 29. Nb5+ {[%clk 0:00:44.6]}
29... Kd8 {[%clk 0:00:38.8]} 30. Rd6 {[%clk 0:00:34.4]} 30... Ke7 {[%clk
0:00:39.2]} 31. Ng6+ {[%clk 0:00:34.7]} 31... Kf7 {[%clk 0:00:39.5]} 32. Nf4
{[%clk 0:00:27]} 32... cxb5 {[%clk 0:00:12]} 33. Rxb6 {[%clk 0:00:25.1]} 33...
bxa4 {[%clk 0:00:12.9]} 34. Rxb4 {[%clk 0:00:23.1]} 34... axb4 {[%clk
0:00:13.8]} 35. bxa4 {[%clk 0:00:22.7]} 35... Bxa4+ {[%clk 0:00:13.9]} 36. Kd2
{[%clk 0:00:20.6]} 36... Bc3+ {[%clk 0:00:13.5]} 37. Kc1 {[%clk 0:00:19.7]}
37... Nb3+ {[%clk 0:00:12.5]} 38. Rxb3 {[%clk 0:00:19.6]} 38... Bxb3 {[%clk
0:00:13.4]} 39. Nd5 {[%clk 0:00:19]} 39... Be1 {[%clk 0:00:13.5]} 40. Kb2 {[%clk
0:00:17.8]} 40... Ba4 {[%clk 0:00:12.2]} 41. c5 {[%clk 0:00:15.4]} 41... Bxf2
{[%clk 0:00:08.7]} 42. Bc4 {[%clk 0:00:16]} 42... Kg7 {[%clk 0:00:06.9]} 43. Ne7
{[%clk 0:00:15.5]} 43... Kf6 {[%clk 0:00:06.6]} 44. Ng8+ {[%clk 0:00:15.9]}
44... Ke5 {[%clk 0:00:06.4]} 45. Nxh6 {[%clk 0:00:16.1]} 45... Bxe3 {[%clk
0:00:06.9]} 46. Nf7+ {[%clk 0:00:17]} 46... Kf6 {[%clk 0:00:07.4]} 47. h5 {[%clk
0:00:17.8]} 47... f4 {[%clk 0:00:06.4]} 48. gxf4 {[%clk 0:00:18]} 48... g3
{[%clk 0:00:07.1]} 49. Ng5 {[%clk 0:00:18]} 49... Bxf4 {[%clk 0:00:07.2]} 50.
Nxe4+ {[%clk 0:00:18]} 50... Ke5 {[%clk 0:00:07.2]} 51. Nxg3 {[%clk 0:00:08.1]}
51... Bxg3 {[%clk 0:00:08.1]} 52. h6 {[%clk 0:00:08.7]} 52... Kd4 {[%clk
0:00:08.7]} 53. h7 {[%clk 0:00:09.6]} 53... Be5 {[%clk 0:00:08.3]} 54. Bf7
{[%clk 0:00:09.7]} 54... Kxc5+ {[%clk 0:00:08.3]} 55. Kb1 {[%clk 0:00:09.2]}
55... b3 {[%clk 0:00:07.9]} 56. Bg6 {[%clk 0:00:09.7]} 56... Kb4 {[%clk
0:00:07.9]} 57. Bd3 {[%clk 0:00:09.3]} 57... Kc3 {[%clk 0:00:08.1]} 58. Bg6
{[%clk 0:00:08.6]} 58... Bc6 {[%clk 0:00:08.5]} 59. Bf5 {[%clk 0:00:08.7]} 59...
b6 {[%clk 0:00:09.1]} 60. Bg6 {[%clk 0:00:09.3]} 60... Bh8 {[%clk 0:00:09.4]}
61. Bf5 {[%clk 0:00:09.8]} 61... Bf3 {[%clk 0:00:09.9]} 62. Bg6 {[%clk
0:00:10.1]} 62... Bd1 {[%clk 0:00:10.4]} 63. Kc1 {[%clk 0:00:08.9]} 63... Be2
{[%clk 0:00:07.3]} 64. Bc2 {[%clk 0:00:08.2]} 64... Bf6 {[%clk 0:00:02.8]} 65.
Bg6 {[%clk 0:00:06.7]} 65... Bd3 {[%clk 0:00:02.8]} 66. Bxd3 {[%clk 0:00:04.1]}
66... Kxd3 {[%clk 0:00:03.7]} 67. Kb1 {[%clk 0:00:04.3]} 67... Bh8 {[%clk
0:00:03.6]} 68. Kc1 {[%clk 0:00:04.7]} 68... Kc4 {[%clk 0:00:04.5]} 69. Kb1
{[%clk 0:00:05.6]} 69... Kb4 {[%clk 0:00:05.4]} 70. Kc1 {[%clk 0:00:06.5]} 70...
Ka3 {[%clk 0:00:06]} 71. Kb1 {[%clk 0:00:07.4]} 71... b5 {[%clk 0:00:06.2]} 72.
Kc1 {[%clk 0:00:07.9]} 72... Ka2 {[%clk 0:00:07.1]} 0-1

[Event "Late-Titled-Tuesday-Blitz-January-23-2024"]
[Site "Chess.com"]
[Date "2024.01.23"]
[Round "1"]
[White "DraningWaterHi"]
[Black "xakevicius91"]
[Result "1-0"]
[WhiteElo "2184"]
[BlackElo "2550"]
[TimeControl "180+1"]
[EndTime "14:08:55 PST"]
[Termination "DraningWaterHi won by resignation"]

1. d4 {[%clk 0:03:00.9]} 1... Nf6 {[%clk 0:03:00]} 2. c4 {[%clk 0:02:59.2]} 2...
g6 {[%clk 0:02:58.3]} 3. g3 {[%clk 0:02:57.6]} 3... Bg7 {[%clk 0:02:58.6]} 4.
Bg2 {[%clk 0:02:54.6]} 4... O-O {[%clk 0:02:59.2]} 5. Nc3 {[%clk 0:02:52.1]}
5... c5 {[%clk 0:02:58.5]} 6. d5 {[%clk 0:02:51.9]} 6... e6 {[%clk 0:02:59]} 7.
Nf3 {[%clk 0:02:47.2]} 7... d6 {[%clk 0:02:59.4]} 8. O-O {[%clk 0:02:46.2]} 8...
exd5 {[%clk 0:02:59.6]} 9. cxd5 {[%clk 0:02:45.9]} 9... Re8 {[%clk 0:02:59.9]}
10. Bf4 {[%clk 0:02:43.2]} 10... Na6 {[%clk 0:02:59.2]} 11. a4 {[%clk
0:02:33.2]} 11... Nc7 {[%clk 0:02:57.9]} 12. Nd2 {[%clk 0:02:24]} 12... Nh5
{[%clk 0:02:52.3]} 13. Be3 {[%clk 0:02:17.5]} 13... b6 {[%clk 0:02:52.3]} 14.
Bf3 {[%clk 0:01:58.6]} 14... Nf6 {[%clk 0:02:48.7]} 15. Bf4 {[%clk 0:01:43.7]}
15... Ba6 {[%clk 0:02:47.9]} 16. Re1 {[%clk 0:01:42.1]} 16... h6 {[%clk
0:02:43.6]} 17. e4 {[%clk 0:01:29.4]} 17... g5 {[%clk 0:02:43.3]} 18. Be3 {[%clk
0:01:29.2]} 18... Nd7 {[%clk 0:02:43.3]} 19. Be2 {[%clk 0:01:26]} 19... Bxe2
{[%clk 0:02:39.9]} 20. Qxe2 {[%clk 0:01:26.9]} 20... Qe7 {[%clk 0:02:36.7]} 21.
f3 {[%clk 0:01:21.7]} 21... a6 {[%clk 0:02:36.9]} 22. Nc4 {[%clk 0:01:18.7]}
22... Rab8 {[%clk 0:02:36.5]} 23. Qc2 {[%clk 0:01:13.9]} 23... b5 {[%clk
0:02:34.2]} 24. Na5 {[%clk 0:01:12.8]} 24... Ne5 {[%clk 0:02:31.3]} 25. Kg2
{[%clk 0:00:59.9]} 25... b4 {[%clk 0:02:25.5]} 26. Nd1 {[%clk 0:00:57.7]} 26...
Rbc8 {[%clk 0:02:18.8]} 27. Rc1 {[%clk 0:00:54.8]} 27... Qd7 {[%clk 0:02:16.2]}
28. b3 {[%clk 0:00:53.3]} 28... Rf8 {[%clk 0:02:06.8]} 29. Nf2 {[%clk
0:00:47.5]} 29... f5 {[%clk 0:02:03.4]} 30. exf5 {[%clk 0:00:47.3]} 30... Rxf5
{[%clk 0:02:04.3]} 31. Nc4 {[%clk 0:00:37.2]} 31... Nxf3 {[%clk 0:01:55.8]} 32.
Nb6 {[%clk 0:00:32.7]} 32... Nxe1+ {[%clk 0:01:38.9]} 33. Rxe1 {[%clk
0:00:32.2]} 33... Qf7 {[%clk 0:01:10.6]} 34. Nxc8 {[%clk 0:00:31.6]} 34... Nxd5
{[%clk 0:01:11.1]} 35. Nxd6 {[%clk 0:00:27.4]} 35... Nxe3+ {[%clk 0:01:03.6]}
36. Rxe3 {[%clk 0:00:27.3]} 36... Qd5+ {[%clk 0:01:03.3]} 37. Qe4 {[%clk
0:00:26]} 37... Qxe4+ {[%clk 0:00:58.3]} 38. Nfxe4 {[%clk 0:00:24.4]} 38... Rd5
{[%clk 0:00:55.4]} 39. Nc4 {[%clk 0:00:22.6]} 39... Bd4 {[%clk 0:00:49.5]} 40.
Re2 {[%clk 0:00:19.8]} 40... Kg7 {[%clk 0:00:47.6]} 41. Kf3 {[%clk 0:00:19.8]}
41... h5 {[%clk 0:00:47.2]} 42. h3 {[%clk 0:00:19.6]} 42... Rf5+ {[%clk
0:00:47.1]} 43. Kg2 {[%clk 0:00:19.3]} 43... Rd5 {[%clk 0:00:46]} 44. g4 {[%clk
0:00:19.1]} 44... hxg4 {[%clk 0:00:45.8]} 45. hxg4 {[%clk 0:00:20]} 45... Kg6
{[%clk 0:00:44.4]} 46. Ng3 {[%clk 0:00:20.3]} 46... a5 {[%clk 0:00:41]} 47. Nxa5
{[%clk 0:00:19.3]} 47... Be5 {[%clk 0:00:38.3]} 48. Nc4 {[%clk 0:00:19.2]} 48...
Bf4 {[%clk 0:00:35.8]} 49. Nf5 {[%clk 0:00:19.1]} 49... Rd3 {[%clk 0:00:32.4]}
50. Ne5+ {[%clk 0:00:16.9]} 50... Bxe5 {[%clk 0:00:32.5]} 51. Rxe5 {[%clk
0:00:17.8]} 51... Rc3 {[%clk 0:00:32.6]} 52. Ne7+ {[%clk 0:00:16.3]} 52... Kf6
{[%clk 0:00:31.2]} 53. Re4 {[%clk 0:00:15.8]} 53... Rxb3 {[%clk 0:00:28.9]} 54.
Nd5+ {[%clk 0:00:16.4]} 54... Kf7 {[%clk 0:00:27.7]} 55. Rc4 {[%clk 0:00:16.2]}
55... Ra3 {[%clk 0:00:25.2]} 56. Rxc5 {[%clk 0:00:15.7]} 56... Rxa4 {[%clk
0:00:25.9]} 57. Rb5 {[%clk 0:00:15.4]} 57... b3 {[%clk 0:00:26.1]} 58. Kf3
{[%clk 0:00:14.2]} 58... Ra3 {[%clk 0:00:24.3]} 59. Ke4 {[%clk 0:00:14.8]} 59...
Ra4+ {[%clk 0:00:24]} 60. Kf5 {[%clk 0:00:15.1]} 60... Rd4 {[%clk 0:00:22.2]}
61. Rb7+ {[%clk 0:00:13.6]} 61... Ke8 {[%clk 0:00:22]} 62. Nf6+ {[%clk
0:00:13.8]} 62... Kd8 {[%clk 0:00:21.5]} 63. Rxb3 {[%clk 0:00:14.7]} 63... Ke7
{[%clk 0:00:19.8]} 64. Ne4 {[%clk 0:00:14]} 64... Rd5+ {[%clk 0:00:19.7]} 65.
Kg6 {[%clk 0:00:14]} 65... Rd4 {[%clk 0:00:19.1]} 66. Re3 {[%clk 0:00:12.7]}
66... Kf8 {[%clk 0:00:18.6]} 67. Nf6 {[%clk 0:00:11.6]} 67... Rd8 {[%clk
0:00:16.7]} 68. Rh3 {[%clk 0:00:11.8]} 68... Ke7 {[%clk 0:00:16.7]} 69. Kxg5
{[%clk 0:00:10.9]} 69... Ra8 {[%clk 0:00:14.3]} 70. Rh7+ {[%clk 0:00:10.9]}
70... Ke6 {[%clk 0:00:14.4]} 71. Kg6 {[%clk 0:00:11.1]} 71... Rf8 {[%clk
0:00:12.3]} 72. g5 {[%clk 0:00:11.5]} 72... Ra8 {[%clk 0:00:12.3]} 73. Rb7
{[%clk 0:00:11.4]} 73... Ra1 {[%clk 0:00:11.9]} 74. Rb6+ {[%clk 0:00:11.4]}
74... Ke7 {[%clk 0:00:12.1]} 75. Kg7 {[%clk 0:00:11.4]} 75... Rg1 {[%clk
0:00:11.8]} 76. g6 {[%clk 0:00:11.8]} 76... Rf1 {[%clk 0:00:12]} 77. Rb7+ {[%clk
0:00:11.8]} 77... Ke6 {[%clk 0:00:11.4]} 78. Nh7 {[%clk 0:00:12.4]} 78... Rg1
{[%clk 0:00:10.7]} 79. Rf7 {[%clk 0:00:09.6]} 79... Rg2 {[%clk 0:00:10.3]} 80.
Rf6+ {[%clk 0:00:09.9]} 80... Ke7 {[%clk 0:00:10.6]} 81. Kh8 {[%clk 0:00:09.1]}
81... Rh2 {[%clk 0:00:09.4]} 82. g7 {[%clk 0:00:09.6]} 82... Rxh7+ {[%clk
0:00:06.5]} 83. Kxh7 {[%clk 0:00:10.5]} 83... Kxf6 {[%clk 0:00:07.2]} 84. g8=Q
{[%clk 0:00:09.8]} 84... Kf5 {[%clk 0:00:08.1]} 1-0